[Event "*** MasterClass Titled Tuesday Blitz"]
[Site "Chess.com"]
[Date "2017.07.04"]
[Round "8"]
[White "Blitzstream"]
[Black "politeplayer"]
[Result "1-0"]
[WhiteElo "2450"]
[BlackElo "2182"]
[TimeControl "180+2"]
[EndTime "14:53:37 PDT"]
[Termination "Blitzstream won by resignation"]

1. d4 {[%clk 0:03:01.9]} 1... d5 {[%clk 0:02:58.1]} 2. Nc3 {[%clk 0:03:00.3]}
2... Nf6 {[%clk 0:02:53.8]} 3. Bf4 {[%clk 0:02:59.7]} 3... c5 {[%clk 0:02:48.9]}
4. e3 {[%clk 0:02:50.1]} 4... cxd4 {[%clk 0:02:48.5]} 5. exd4 {[%clk 0:02:51]}
5... a6 {[%clk 0:02:39.9]} 6. Bd3 {[%clk 0:02:46.6]} 6... Nc6 {[%clk 0:02:37.9]}
7. Nge2 {[%clk 0:02:47.1]} 7... Bg4 {[%clk 0:02:33]} 8. f3 {[%clk 0:02:46.7]}
8... Bh5 {[%clk 0:02:26.6]} 9. g4 {[%clk 0:02:41.5]} 9... Bg6 {[%clk 0:02:26.4]}
10. h4 {[%clk 0:02:43.1]} 10... e6 {[%clk 0:02:16.3]} 11. h5 {[%clk 0:02:40.8]}
11... Bxd3 {[%clk 0:02:12.4]} 12. Qxd3 {[%clk 0:02:42.7]} 12... Bd6 {[%clk
0:02:02.3]} 13. h6 {[%clk 0:02:39]} 13... g6 {[%clk 0:01:53.3]} 14. Bg5 {[%clk
0:02:37.2]} 14... Be7 {[%clk 0:01:49.7]} 15. Bf4 {[%clk 0:02:18.5]} 15... Qa5
{[%clk 0:01:45.2]} 16. a3 {[%clk 0:02:13.8]} 16... Rc8 {[%clk 0:01:37.7]} 17.
Kf2 {[%clk 0:01:59.6]} 17... b5 {[%clk 0:01:34.7]} 18. Kg2 {[%clk 0:01:59.5]}
18... Qb6 {[%clk 0:01:31.8]} 19. Bg3 {[%clk 0:01:27.6]} 19... Na5 {[%clk
0:01:26.6]} 20. Nd1 {[%clk 0:01:04.4]} 20... Nc4 {[%clk 0:01:21.2]} 21. c3
{[%clk 0:01:02.6]} 21... Bd6 {[%clk 0:01:14.2]} 22. Bxd6 {[%clk 0:00:56.5]}
22... Qxd6 {[%clk 0:01:12.8]} 23. a4 {[%clk 0:00:30.5]} 23... e5 {[%clk
0:01:03.1]} 24. dxe5 {[%clk 0:00:26.8]} 24... Nxe5 {[%clk 0:01:02.4]} 25. Qd4
{[%clk 0:00:25.5]} 25... Rc4 {[%clk 0:00:59.5]} 26. Qe3 {[%clk 0:00:16.9]} 26...
O-O {[%clk 0:00:50.5]} 27. Nd4 {[%clk 0:00:17.4]} 27... Re8 {[%clk 0:00:45.6]}
28. Re1 {[%clk 0:00:17.4]} 28... Rcc8 {[%clk 0:00:38.4]} 29. Qf4 {[%clk
0:00:14.3]} 29... Nfd7 {[%clk 0:00:19.9]} 30. axb5 {[%clk 0:00:13.2]} 30... axb5
{[%clk 0:00:19.7]} 31. Nf2 {[%clk 0:00:09.8]} 31... Qb6 {[%clk 0:00:18.1]} 32.
Nh3 {[%clk 0:00:10.2]} 32... Nd3 {[%clk 0:00:16.5]} 33. Rxe8+ {[%clk 0:00:08.5]}
33... Rxe8 {[%clk 0:00:17.6]} 34. Qd2 {[%clk 0:00:10.1]} 34... N7e5 {[%clk
0:00:17.8]} 35. Nf2 {[%clk 0:00:07.3]} 35... Nxf2 {[%clk 0:00:18]} 36. Qxf2
{[%clk 0:00:09.2]} 36... Nd3 {[%clk 0:00:18.7]} 37. Qd2 {[%clk 0:00:10.2]} 37...
Nc5 {[%clk 0:00:17.9]} 38. Re1 {[%clk 0:00:10.7]} 38... Rxe1 {[%clk 0:00:15.2]}
39. Qxe1 {[%clk 0:00:12.6]} 39... Qd8 {[%clk 0:00:14.7]} 40. Qe5 {[%clk
0:00:12.9]} 40... Kf8 {[%clk 0:00:14.8]} 41. Qh8+ {[%clk 0:00:10.7]} 41... Ke7
{[%clk 0:00:15.8]} 42. Nc6+ {[%clk 0:00:11.9]} 1-0

[Event "*** MasterClass Titled Tuesday Blitz"]
[Site "Chess.com"]
[Date "2017.07.04"]
[Round "8"]
[White "maheswaran26"]
[Black "Me_ch_an"]
[Result "1-0"]
[WhiteElo "2153"]
[BlackElo "2244"]
[TimeControl "180+2"]
[EndTime "14:53:47 PDT"]
[Termination "maheswaran26 won on time"]

1. d4 {[%clk 0:02:59.4]} 1... d5 {[%clk 0:03:00.7]} 2. c4 {[%clk 0:02:59.4]}
2... dxc4 {[%clk 0:03:02.6]} 3. e3 {[%clk 0:02:57.7]} 3... e5 {[%clk 0:03:02.8]}
4. dxe5 {[%clk 0:02:58.2]} 4... Qxd1+ {[%clk 0:03:02.8]} 5. Kxd1 {[%clk
0:02:59.1]} 5... Nc6 {[%clk 0:03:01]} 6. Nf3 {[%clk 0:02:56.5]} 6... Bg4 {[%clk
0:03:01]} 7. Bxc4 {[%clk 0:02:50.8]} 7... Nxe5 {[%clk 0:03:00.4]} 8. Be2 {[%clk
0:02:50.3]} 8... Nxf3 {[%clk 0:02:57.9]} 9. Bxf3 {[%clk 0:02:49]} 9... Bxf3+
{[%clk 0:02:58.8]} 10. gxf3 {[%clk 0:02:49.2]} 10... O-O-O+ {[%clk 0:02:59.2]}
11. Ke2 {[%clk 0:02:50.1]} 11... Nf6 {[%clk 0:02:59.8]} 12. Nc3 {[%clk
0:02:48.9]} 12... Bb4 {[%clk 0:02:59.3]} 13. Bd2 {[%clk 0:02:48.5]} 13... c6
{[%clk 0:02:51.3]} 14. Rhg1 {[%clk 0:02:45.8]} 14... g6 {[%clk 0:02:48]} 15.
Rac1 {[%clk 0:02:31.9]} 15... Rd7 {[%clk 0:02:45.2]} 16. Nb1 {[%clk 0:02:23.9]}
16... Be7 {[%clk 0:02:33]} 17. Bc3 {[%clk 0:02:15.2]} 17... Rhd8 {[%clk
0:02:33.1]} 18. Bd4 {[%clk 0:02:01.1]} 18... Kb8 {[%clk 0:02:31.7]} 19. Nc3
{[%clk 0:01:58.5]} 19... Nd5 {[%clk 0:02:30.8]} 20. Nxd5 {[%clk 0:01:51.9]}
20... Rxd5 {[%clk 0:02:32.7]} 21. f4 {[%clk 0:01:46]} 21... f5 {[%clk
0:02:31.7]} 22. h4 {[%clk 0:01:41.7]} 22... c5 {[%clk 0:02:16.7]} 23. Be5+
{[%clk 0:01:40.2]} 23... Kc8 {[%clk 0:01:51.9]} 24. h5 {[%clk 0:01:36.5]} 24...
g5 {[%clk 0:01:47.1]} 25. Rgd1 {[%clk 0:01:20]} 25... b6 {[%clk 0:01:32.9]} 26.
Rxd5 {[%clk 0:01:16.9]} 26... Rxd5 {[%clk 0:01:33.1]} 27. f3 {[%clk 0:01:18]}
27... gxf4 {[%clk 0:01:26.8]} 28. Bxf4 {[%clk 0:01:15.8]} 28... Bf6 {[%clk
0:01:25]} 29. b3 {[%clk 0:01:15.6]} 29... Kb7 {[%clk 0:01:06.4]} 30. h6 {[%clk
0:01:14.3]} 30... b5 {[%clk 0:00:57.6]} 31. e4 {[%clk 0:01:08.5]} 31... fxe4
{[%clk 0:00:58.7]} 32. fxe4 {[%clk 0:01:08.5]} 32... Rh5 {[%clk 0:00:59.5]} 33.
Rg1 {[%clk 0:01:06.3]} 33... c4 {[%clk 0:00:49.6]} 34. Rg7+ {[%clk 0:01:04.7]}
34... Kb6 {[%clk 0:00:39]} 35. bxc4 {[%clk 0:00:58.5]} 35... bxc4 {[%clk
0:00:39.6]} 36. Rxh7 {[%clk 0:00:56.5]} 36... c3 {[%clk 0:00:37.5]} 37. Rf7
{[%clk 0:00:54.5]} 37... Bd4 {[%clk 0:00:34.8]} 38. h7 {[%clk 0:00:53.3]} 38...
Rh1 {[%clk 0:00:34]} 39. Kd3 {[%clk 0:00:52.1]} 39... Rd1+ {[%clk 0:00:21]} 40.
Kc2 {[%clk 0:00:51.2]} 40... Rh1 {[%clk 0:00:20.7]} 41. e5 {[%clk 0:00:43]}
41... Kc5 {[%clk 0:00:19.2]} 42. Rf8 {[%clk 0:00:42.2]} 42... Ra1 {[%clk
0:00:02]} 43. h8=Q {[%clk 0:00:36.1]} 43... Rxa2+ {[%clk 0:00:03.1]} 44. Kd3
{[%clk 0:00:36]} 1-0

[Event "*** MasterClass Titled Tuesday Blitz"]
[Site "Chess.com"]
[Date "2017.07.04"]
[Round "8"]
[White "Godzillator"]
[Black "mokerslag"]
[Result "1-0"]
[WhiteElo "2289"]
[BlackElo "2443"]
[TimeControl "180+2"]
[EndTime "14:54:26 PDT"]
[Termination "Godzillator won by resignation"]

1. d4 {[%clk 0:03:01.9]} 1... e6 {[%clk 0:03:01.9]} 2. c4 {[%clk 0:03:03.1]}
2... d5 {[%clk 0:03:03.8]} 3. cxd5 {[%clk 0:03:03.5]} 3... exd5 {[%clk
0:03:04.9]} 4. Nc3 {[%clk 0:03:04.7]} 4... Be7 {[%clk 0:03:05.9]} 5. Qc2 {[%clk
0:03:04.9]} 5... Nf6 {[%clk 0:03:06.8]} 6. Bg5 {[%clk 0:03:05.5]} 6... O-O
{[%clk 0:03:08]} 7. e3 {[%clk 0:03:06.8]} 7... h6 {[%clk 0:03:08.8]} 8. Bh4
{[%clk 0:03:07.4]} 8... c5 {[%clk 0:03:09.3]} 9. dxc5 {[%clk 0:03:07.7]} 9...
Nbd7 {[%clk 0:03:08.5]} 10. Rd1 {[%clk 0:03:04]} 10... Nxc5 {[%clk 0:03:08]} 11.
Bxf6 {[%clk 0:02:58.8]} 11... Bxf6 {[%clk 0:03:09.9]} 12. Nxd5 {[%clk
0:03:00.1]} 12... b6 {[%clk 0:02:42.5]} 13. b4 {[%clk 0:02:43.3]} 13... Ne6
{[%clk 0:02:36.9]} 14. Nxf6+ {[%clk 0:02:41.9]} 14... Qxf6 {[%clk 0:02:38.8]}
15. Nf3 {[%clk 0:02:40.6]} 15... Bb7 {[%clk 0:02:38]} 16. Be2 {[%clk 0:02:41.6]}
16... Rac8 {[%clk 0:02:38.9]} 17. Qb3 {[%clk 0:02:14]} 17... Ng5 {[%clk
0:02:37]} 18. Nxg5 {[%clk 0:01:53.3]} 18... Qxg5 {[%clk 0:02:38.9]} 19. Bf3
{[%clk 0:01:48.5]} 19... Bxf3 {[%clk 0:02:38.8]} 20. gxf3 {[%clk 0:01:49.7]}
20... Qg2 {[%clk 0:02:40.4]} 21. Ke2 {[%clk 0:01:50.5]} 21... Qg6 {[%clk
0:02:24]} 22. Rd2 {[%clk 0:01:41.1]} 22... Rc6 {[%clk 0:02:20.6]} 23. Rhd1
{[%clk 0:01:39.4]} 23... Qh5 {[%clk 0:02:18.3]} 24. Qd5 {[%clk 0:01:37.3]} 24...
Qg6 {[%clk 0:02:12.6]} 25. Qe4 {[%clk 0:01:36.4]} 25... Qf6 {[%clk 0:02:08.8]}
26. Rd7 {[%clk 0:01:21]} 26... Re6 {[%clk 0:02:06.3]} 27. Qd4 {[%clk 0:01:16.6]}
27... Qg6 {[%clk 0:01:54.5]} 28. Rd8 {[%clk 0:01:11.6]} 28... Rxd8 {[%clk
0:01:50.5]} 29. Qxd8+ {[%clk 0:01:12]} 29... Kh7 {[%clk 0:01:52.4]} 30. Qd3
{[%clk 0:01:12.8]} 30... f5 {[%clk 0:01:52.4]} 31. Qd5 {[%clk 0:01:06.7]} 31...
Qf6 {[%clk 0:01:45.4]} 32. Rd2 {[%clk 0:00:59.9]} 32... Re5 {[%clk 0:01:41.4]}
33. Qd6 {[%clk 0:00:55.6]} 33... Re6 {[%clk 0:01:40.4]} 34. Qd4 {[%clk
0:00:53.3]} 34... Qf7 {[%clk 0:01:35.2]} 35. Qd7 {[%clk 0:00:48.8]} 35... Re7
{[%clk 0:01:33.9]} 36. Qd5 {[%clk 0:00:49.7]} 36... Qh5 {[%clk 0:01:30.6]} 37.
Rd4 {[%clk 0:00:43.7]} 37... Rf7 {[%clk 0:01:14.3]} 38. h4 {[%clk 0:00:42.4]}
38... Rf6 {[%clk 0:01:14]} 39. Rf4 {[%clk 0:00:41.6]} 39... Qg6 {[%clk
0:01:09.9]} 40. b5 {[%clk 0:00:33.5]} 40... Rf8 {[%clk 0:00:58.5]} 41. e4 {[%clk
0:00:32.7]} 41... Rc8 {[%clk 0:00:40.6]} 42. Qxf5 {[%clk 0:00:33.2]} 42... Rc2+
{[%clk 0:00:40.6]} 43. Ke3 {[%clk 0:00:33.7]} 43... Rxa2 {[%clk 0:00:41.8]} 44.
h5 {[%clk 0:00:32.6]} 44... Qxf5 {[%clk 0:00:42.1]} 45. Rxf5 {[%clk 0:00:33.9]}
45... Kg8 {[%clk 0:00:36.3]} 46. e5 {[%clk 0:00:34.6]} 46... Ra1 {[%clk
0:00:28.7]} 47. Kd4 {[%clk 0:00:29.2]} 47... Rd1+ {[%clk 0:00:25.2]} 48. Kc4
{[%clk 0:00:28.1]} 48... Re1 {[%clk 0:00:24.2]} 49. f4 {[%clk 0:00:28.5]} 49...
Re2 {[%clk 0:00:23.4]} 50. Kd5 {[%clk 0:00:29]} 50... Rd2+ {[%clk 0:00:22.2]}
51. Kc6 {[%clk 0:00:29.8]} 51... Rxf2 {[%clk 0:00:23.5]} 52. e6 {[%clk
0:00:30.5]} 52... Re2 {[%clk 0:00:24.7]} 53. Kd7 {[%clk 0:00:30.3]} 53... Rd2+
{[%clk 0:00:25.2]} 54. Ke8 {[%clk 0:00:31.3]} 54... Ra2 {[%clk 0:00:21.2]} 55.
e7 {[%clk 0:00:31.9]} 55... a6 {[%clk 0:00:22.3]} 56. Rf8+ {[%clk 0:00:32.4]}
56... Kh7 {[%clk 0:00:21.4]} 57. Kf7 {[%clk 0:00:32.9]} 57... Re2 {[%clk
0:00:22.2]} 58. e8=Q {[%clk 0:00:32.9]} 58... Rxe8 {[%clk 0:00:24.1]} 59. Rxe8
{[%clk 0:00:34.1]} 59... axb5 {[%clk 0:00:26]} 60. Rb8 {[%clk 0:00:34.8]} 1-0

[Event "*** MasterClass Titled Tuesday Blitz"]
[Site "Chess.com"]
[Date "2017.07.04"]
[Round "8"]
[White "vpantev"]
[Black "wonderfultime"]
[Result "0-1"]
[WhiteElo "2455"]
[BlackElo "2661"]
[TimeControl "180+2"]
[EndTime "14:54:50 PDT"]
[Termination "wonderfultime won by resignation"]

1. d4 {[%clk 0:03:01.9]} 1... d5 {[%clk 0:03:00.3]} 2. Nf3 {[%clk 0:03:02.8]}
2... Nf6 {[%clk 0:03:00.8]} 3. Bf4 {[%clk 0:03:03.7]} 3... e6 {[%clk 0:03:00.6]}
4. e3 {[%clk 0:03:04.7]} 4... c5 {[%clk 0:02:58.1]} 5. Nbd2 {[%clk 0:03:02.4]}
5... Qb6 {[%clk 0:02:57.6]} 6. Rb1 {[%clk 0:03:02.8]} 6... Be7 {[%clk 0:02:43]}
7. h3 {[%clk 0:03:02]} 7... O-O {[%clk 0:02:43.7]} 8. c3 {[%clk 0:03:02.8]} 8...
Bd7 {[%clk 0:02:43.9]} 9. Qb3 {[%clk 0:02:52.9]} 9... Nc6 {[%clk 0:02:39.5]} 10.
Be2 {[%clk 0:02:52.3]} 10... Rfc8 {[%clk 0:02:37.5]} 11. O-O {[%clk 0:02:51.6]}
11... h6 {[%clk 0:02:38.1]} 12. Ne5 {[%clk 0:02:51.8]} 12... Be8 {[%clk
0:02:35.9]} 13. Rfe1 {[%clk 0:02:46.7]} 13... Na5 {[%clk 0:02:30.8]} 14. Qxb6
{[%clk 0:02:39.8]} 14... axb6 {[%clk 0:02:32.7]} 15. a3 {[%clk 0:02:40.1]} 15...
Nc6 {[%clk 0:02:26.8]} 16. Bf3 {[%clk 0:02:37.2]} 16... Nd7 {[%clk 0:02:16.6]}
17. Nxd7 {[%clk 0:02:37]} 17... Bxd7 {[%clk 0:02:17.2]} 18. Be2 {[%clk
0:02:33.7]} 18... Be8 {[%clk 0:02:09.6]} 19. g4 {[%clk 0:02:33.1]} 19... f6
{[%clk 0:02:09.1]} 20. Bd3 {[%clk 0:02:33.3]} 20... e5 {[%clk 0:02:06.6]} 21.
Bg3 {[%clk 0:02:24.8]} 21... Rd8 {[%clk 0:01:46]} 22. Bb5 {[%clk 0:02:04.4]}
22... Bg6 {[%clk 0:01:44.7]} 23. Rbc1 {[%clk 0:02:00.8]} 23... Bd6 {[%clk
0:01:32.1]} 24. dxe5 {[%clk 0:01:56.4]} 24... Nxe5 {[%clk 0:01:30.5]} 25. Kg2
{[%clk 0:01:51]} 25... Bd3 {[%clk 0:00:57.7]} 26. Bxe5 {[%clk 0:01:47.8]} 26...
Bxb5 {[%clk 0:00:59]} 27. Bxd6 {[%clk 0:01:48.1]} 27... Rxd6 {[%clk 0:01:00.9]}
28. f4 {[%clk 0:01:45]} 28... Re6 {[%clk 0:01:00]} 29. Kf2 {[%clk 0:01:45.6]}
29... Rae8 {[%clk 0:01:00.4]} 30. Nf3 {[%clk 0:01:46]} 30... Kf7 {[%clk
0:01:01.7]} 31. Rcd1 {[%clk 0:01:46.5]} 31... Bc6 {[%clk 0:01:02.6]} 32. h4
{[%clk 0:01:40.5]} 32... h5 {[%clk 0:01:02.3]} 33. g5 {[%clk 0:01:36.5]} 33...
Re4 {[%clk 0:01:02.2]} 34. Nd2 {[%clk 0:01:34.9]} 34... Ra4 {[%clk 0:01:01.2]}
35. Nf1 {[%clk 0:01:31.6]} 35... fxg5 {[%clk 0:00:58]} 36. hxg5 {[%clk 0:01:31]}
36... b5 {[%clk 0:00:45.5]} 37. Nh2 {[%clk 0:01:28.9]} 37... b4 {[%clk
0:00:46.9]} 38. axb4 {[%clk 0:01:29.7]} 38... cxb4 {[%clk 0:00:48.8]} 39. cxb4
{[%clk 0:01:30.3]} 39... Rxb4 {[%clk 0:00:50]} 40. Rd2 {[%clk 0:01:31.4]} 40...
d4 {[%clk 0:00:44.7]} 41. exd4 {[%clk 0:01:29.3]} 41... Re6 {[%clk 0:00:46.2]}
42. Re5 {[%clk 0:01:22.8]} 42... Rxe5 {[%clk 0:00:43.1]} 43. fxe5 {[%clk
0:01:23.1]} 43... Ke6 {[%clk 0:00:44.6]} 44. Nf1 {[%clk 0:01:18.3]} 44... Be4
{[%clk 0:00:27.2]} 45. Ng3 {[%clk 0:01:15.3]} 45... Bg6 {[%clk 0:00:27.7]} 46.
Ne2 {[%clk 0:01:16.2]} 46... Kf5 {[%clk 0:00:24.8]} 47. Ng3+ {[%clk 0:01:16.4]}
47... Kxg5 {[%clk 0:00:25.7]} 48. d5 {[%clk 0:01:14.8]} 48... h4 {[%clk
0:00:26.7]} 49. Ne2 {[%clk 0:01:12.8]} 49... Bf5 {[%clk 0:00:25.8]} 50. d6
{[%clk 0:01:11.3]} 50... Bd7 {[%clk 0:00:24.1]} 51. e6 {[%clk 0:01:12.1]} 51...
Bxe6 {[%clk 0:00:24.9]} 52. d7 {[%clk 0:01:13.1]} 52... Bxd7 {[%clk 0:00:26.1]}
53. Rxd7 {[%clk 0:01:13.8]} 53... Kf6 {[%clk 0:00:21.5]} 54. Rd2 {[%clk
0:01:08]} 54... g5 {[%clk 0:00:22.2]} 55. Nd4 {[%clk 0:01:07.2]} 55... g4 {[%clk
0:00:21.9]} 56. Ke3 {[%clk 0:01:05.1]} 56... Ke5 {[%clk 0:00:23.2]} 57. b3
{[%clk 0:01:02.5]} 57... h3 {[%clk 0:00:23.6]} 58. Rd1 {[%clk 0:01:00.4]} 58...
h2 {[%clk 0:00:23.6]} 59. Rh1 {[%clk 0:00:59.2]} 59... g3 {[%clk 0:00:21.4]} 60.
Nf3+ {[%clk 0:00:59.9]} 60... Kf5 {[%clk 0:00:22.4]} 61. Nxh2 {[%clk 0:00:59.4]}
61... Rxb3+ {[%clk 0:00:22]} 62. Kd4 {[%clk 0:00:59.8]} 62... Rb4+ {[%clk
0:00:15.1]} 63. Kc5 {[%clk 0:00:57.3]} 63... Rh4 {[%clk 0:00:16]} 64. Rf1+
{[%clk 0:00:57.6]} 64... Rf4 {[%clk 0:00:17.2]} 65. Rh1 {[%clk 0:00:55.1]} 65...
Rf2 {[%clk 0:00:18]} 66. Rg1 {[%clk 0:00:52]} 66... gxh2 {[%clk 0:00:19]} 67.
Rh1 {[%clk 0:00:53.1]} 67... Kg4 {[%clk 0:00:19.5]} 0-1

[Event "*** MasterClass Titled Tuesday Blitz"]
[Site "Chess.com"]
[Date "2017.07.04"]
[Round "8"]
[White "AkshatChandra"]
[Black "BilodeauA"]
[Result "1-0"]
[WhiteElo "2676"]
[BlackElo "2624"]
[TimeControl "180+2"]
[EndTime "14:54:53 PDT"]
[Termination "AkshatChandra won by resignation"]

1. d4 {[%clk 0:03:00.7]} 1... d5 {[%clk 0:02:58.5]} 2. Bf4 {[%clk 0:03:01.6]}
2... Nf6 {[%clk 0:02:58.7]} 3. e3 {[%clk 0:03:02.8]} 3... c5 {[%clk 0:03:00]} 4.
c3 {[%clk 0:03:04]} 4... Nc6 {[%clk 0:03:01.2]} 5. Nd2 {[%clk 0:03:05.2]} 5...
Bf5 {[%clk 0:03:02.4]} 6. Qb3 {[%clk 0:02:58.3]} 6... Qc8 {[%clk 0:03:03.1]} 7.
Ngf3 {[%clk 0:02:55.9]} 7... e6 {[%clk 0:03:03.7]} 8. Nh4 {[%clk 0:02:46.8]}
8... Be4 {[%clk 0:03:04.2]} 9. f3 {[%clk 0:02:45.3]} 9... Bg6 {[%clk 0:03:04.6]}
10. Nxg6 {[%clk 0:02:46.4]} 10... hxg6 {[%clk 0:03:04.9]} 11. g4 {[%clk
0:02:47.4]} 11... Be7 {[%clk 0:02:59.9]} 12. Bg2 {[%clk 0:02:46.1]} 12... O-O
{[%clk 0:02:59.6]} 13. O-O {[%clk 0:02:42.1]} 13... Qd7 {[%clk 0:03:00.5]} 14.
Rad1 {[%clk 0:02:40.9]} 14... Bd6 {[%clk 0:03:00.2]} 15. Bxd6 {[%clk 0:02:27.8]}
15... Qxd6 {[%clk 0:03:02.1]} 16. Qa3 {[%clk 0:02:29.1]} 16... b6 {[%clk
0:02:30.9]} 17. dxc5 {[%clk 0:02:13.7]} 17... Qxc5 {[%clk 0:02:17.6]} 18. Qxc5
{[%clk 0:02:10]} 18... bxc5 {[%clk 0:02:19.5]} 19. g5 {[%clk 0:02:10]} 19... Nd7
{[%clk 0:02:19]} 20. f4 {[%clk 0:02:10.1]} 20... Nb6 {[%clk 0:02:15.8]} 21. c4
{[%clk 0:02:10]} 21... Rad8 {[%clk 0:02:07.2]} 22. cxd5 {[%clk 0:02:07.1]} 22...
exd5 {[%clk 0:02:09.1]} 23. Rc1 {[%clk 0:02:04.8]} 23... c4 {[%clk 0:01:55.8]}
24. b3 {[%clk 0:02:02.4]} 24... Na5 {[%clk 0:01:56.3]} 25. Rfd1 {[%clk
0:01:58.2]} 25... Rfe8 {[%clk 0:01:49.8]} 26. Kf2 {[%clk 0:01:58.6]} 26... d4
{[%clk 0:01:48.6]} 27. exd4 {[%clk 0:01:46.2]} 27... Rxd4 {[%clk 0:01:40]} 28.
Nxc4 {[%clk 0:01:42.3]} 28... Rxf4+ {[%clk 0:01:09.4]} 29. Kg3 {[%clk
0:01:42.6]} 29... Rf5 {[%clk 0:01:09.2]} 30. Nxb6 {[%clk 0:01:36.8]} 30... Rxg5+
{[%clk 0:01:07.6]} 31. Kf2 {[%clk 0:01:33.7]} 31... axb6 {[%clk 0:01:07.5]} 32.
b4 {[%clk 0:01:35.1]} 32... Rf5+ {[%clk 0:00:58.4]} 33. Kg1 {[%clk 0:01:34.4]}
33... Re2 {[%clk 0:00:57.7]} 34. Bd5 {[%clk 0:01:30.9]} 34... Rg5+ {[%clk
0:00:45.7]} 35. Kh1 {[%clk 0:01:22.2]} 35... Rh5 {[%clk 0:00:25.5]} 36. bxa5
{[%clk 0:01:23.1]} 36... Rhxh2+ {[%clk 0:00:22]} 37. Kg1 {[%clk 0:01:24.4]}
37... bxa5 {[%clk 0:00:23.7]} 38. Rf1 {[%clk 0:01:24.1]} 38... Kh7 {[%clk
0:00:23.6]} 39. Rxf7 {[%clk 0:01:22]} 39... Rh5 {[%clk 0:00:24.3]} 40. Rd1
{[%clk 0:01:10.4]} 40... Rg5+ {[%clk 0:00:23.8]} 41. Kf1 {[%clk 0:01:11.9]}
41... Rh2 {[%clk 0:00:23.7]} 42. Rf2 {[%clk 0:01:05.4]} 42... Rhh5 {[%clk
0:00:21.7]} 43. Bf3 {[%clk 0:01:05.4]} 43... Rh3 {[%clk 0:00:22.3]} 44. Rdd2
{[%clk 0:01:03.6]} 44... Kg8 {[%clk 0:00:15.5]} 45. Bd5+ {[%clk 0:01:03.7]}
45... Kh7 {[%clk 0:00:16.8]} 46. Rh2 {[%clk 0:00:58]} 46... Rhh5 {[%clk
0:00:17.4]} 47. Bf3 {[%clk 0:00:55.3]} 47... Rh6 {[%clk 0:00:17.5]} 48. Rxh6+
{[%clk 0:00:54.7]} 48... gxh6 {[%clk 0:00:19.4]} 49. Rd7+ {[%clk 0:00:55.6]}
49... Kh8 {[%clk 0:00:20.5]} 50. Rd5 {[%clk 0:00:52.9]} 50... Rxd5 {[%clk
0:00:14.3]} 51. Bxd5 {[%clk 0:00:54.3]} 51... Kg7 {[%clk 0:00:15.7]} 52. Ke2
{[%clk 0:00:51.4]} 52... h5 {[%clk 0:00:15.9]} 53. Ke3 {[%clk 0:00:50.6]} 53...
Kf6 {[%clk 0:00:16.8]} 54. Ke4 {[%clk 0:00:50.2]} 54... g5 {[%clk 0:00:17.7]}
55. Bb3 {[%clk 0:00:45.3]} 55... Kg6 {[%clk 0:00:16.8]} 56. Ba4 {[%clk
0:00:46.1]} 56... h4 {[%clk 0:00:06.3]} 57. Be8+ {[%clk 0:00:46.9]} 57... Kf6
{[%clk 0:00:05.7]} 58. Bd7 {[%clk 0:00:48.4]} 58... Ke7 {[%clk 0:00:06.3]} 59.
Bh3 {[%clk 0:00:47.9]} 59... Kf6 {[%clk 0:00:03.8]} 60. Bg4 {[%clk 0:00:48.2]}
60... a4 {[%clk 0:00:05]} 61. Bh3 {[%clk 0:00:46.7]} 61... a3 {[%clk 0:00:06.2]}
62. Bg4 {[%clk 0:00:47.4]} 62... Kg6 {[%clk 0:00:07.7]} 63. Ke5 {[%clk
0:00:48.2]} 63... Kh6 {[%clk 0:00:07.9]} 64. Kf6 {[%clk 0:00:49]} 64... h3
{[%clk 0:00:09]} 65. Bxh3 {[%clk 0:00:49.3]} 65... Kh5 {[%clk 0:00:10.9]} 66.
Kf5 {[%clk 0:00:49.6]} 66... Kh4 {[%clk 0:00:12.2]} 67. Bg4 {[%clk 0:00:50.3]}
67... Kg3 {[%clk 0:00:13.6]} 68. Kxg5 {[%clk 0:00:51.9]} 68... Kf2 {[%clk
0:00:15.5]} 69. Kf4 {[%clk 0:00:52.6]} 1-0